Cogmind - Beta 17 @@@ ROGUE MODE // 2026.07.20 @ 20:48:57 Player: Ry645 Result: Destroyed by Y-45 Defender with Heavy Assault Rifle Performance ------------- Evolutions (0) 0 Regions Visited (3) 600 Robots Destroyed (39) 195 Value Destroyed (1160) 1160 Prototype IDs (4) 80 Alien Tech Used (0) 0 Bonus (60) 60 TOTAL SCORE: 2095 Bonus ------- Follower Combat Kills 60 Cogmind --------- Core Integrity 0/250 Matter 139/300 Energy 69/100 System Corruption 0% Temperature Cool (11) Movement Walking (190) Ox1 Location -10/Subcaves Parts ------- > --- POWER (1) -------- (None) > --- PROPULSION (2) --- Aluminum Leg Carbon-fiber Leg > --- UTILITY (2) ------ Large Storage Unit > --- WEAPON (2) ------- Grenade Launcher Grenade Launcher > --- INVENTORY (15) --- Subdweller Power Source Carbon-fiber Leg High-capacity Matter Pod (200) Light Armor Plating Scrap Shield Hacking Suite Subdweller Machine Gun High-powered Shotgun Barrage Gun Rocket Launcher Datajack Peak State ------------ > --- POWER ------------ Light Deuterium Engine > --- PROPULSION ------- Aluminum Leg Carbon-fiber Leg > --- UTILITY ---------- Large Storage Unit Signal Interpreter > --- WEAPON ----------- Ion Cannon Heavy Assault Rifle > --- INVENTORY -------- Light Nuclear Core Carbon-fiber Leg Carbon-fiber Leg High-capacity Matter Pod Light Armor Plating Scrap Shield Hacking Suite High-powered Shotgun Light Cannon Grenade Launcher Grenade Launcher Rocket Launcher Datajack [Rating: 16] Favorites ----------- Power Ion Engine Engine Ion Engine Power Core Light Nuclear Core Propulsion Aluminum Leg Leg Aluminum Leg Utility Large Storage Unit Storage Large Storage Unit Processor Signal Interpreter Protection Light Armor Plating Weapon Light Assault Rifle Energy Cannon Ion Cannon Ballistic Gun Light Assault Rifle Ballistic Cannon Light Cannon Launcher Grenade Launcher Special Melee Weapon Datajack Build | -11 -10 -10 -10 ------- Run | Yrd Mat Min Sub Slots Evolved . | . . . . Power . | . . . . Propulsion . | . . . . Utility . | . . . . Weapon . | . . . . Parts Attached 31 | 7 8 4 12 Power 4 | 1 1 1 1 Engine 3 | 1 1 . 1 Core 1 | . . 1 . Reactor . | . . . . Propulsion 5 | 2 . 1 2 Treads . | . . . . Leg 5 | 2 . 1 2 Wheel . | . . . . Hover . | . . . . Flight . | . . . . Utility 5 | 1 4 . . Device . | . . . . Storage 3 | 1 2 . . Processor 1 | . 1 . . Hackware . | . . . . Protection 1 | . 1 . . Artifact . | . . . . Weapon 17 | 3 3 2 9 Energy Gun . | . . . . Energy Cannon 1 | . . 1 . Ballistic Gun 10 | 3 . 1 6 Ballistic Cannon 2 | . 1 . 1 Launcher 3 | . 1 . 2 Special Weapon . | . . . . Impact Weapon . | . . . . Slashing Weapon . | . . . . Piercing Weapon . | . . . . Special Melee Weapon 1 | . 1 . . Unidentified Prototypes . | . . . . Parts Lost 6 | . . . 6 Power 1 | . . . 1 Propulsion 1 | . . . 1 Utility 1 | . . . 1 Weapon 3 | . . . 3 Highest Loss Streak 4 | . . . 4 To Critical Strikes . | . . . . Average Backups 12 | 2 10 14 13 Power . | . . 1 . Propulsion 1 | . 1 2 1 Utility 4 | . 4 5 4 Weapon 4 | 1 2 4 5 Tool/Special . | . . . . Unused Backups 20 | . 5 4 11 Power 3 | . . 1 2 Propulsion 4 | . . 1 3 Utility 11 | . 4 2 5 Weapon 2 | . 1 . 1 Tool/Special . | . . . . Average Slot Usage (%) 98 | . 99 99 96 Engine 10 | . 14 3 9 Core 3 | . . 10 3 Leg 27 | . 27 28 28 Storage 14 | . 14 14 14 Processor 11 | . 9 14 12 Protection 1 | . 4 . . Energy Cannon 4 | . . 10 5 Ballistic Gun 17 | . 18 14 17 Ballistic Cannon 4 | . 9 3 . Launcher 1 | . . . 3 Peak Build Rating 16 | 6 9 15 16 Average Rating 11 | 4 7 13 14 On Entrance 7 | . 6 8 15 Avg Prop Armor Cover (%) . | . . . . Naked Turns . | . . . . Heaviest Build 34 | 13 31 34 34 Greatest Support 25 | 20 20 20 25 Greatest Overweight (x) 2 | . 2 1 1 Average Overweight (x) . | . . 1 1 Largest Inventory Capacity 15 | 8 15 15 15 Average Capacity 14 | 7 13 15 15 Most Carried 15 | 5 14 15 15 Average Carried 12 | 2 10 14 14 Final Capacity 15 | 8 15 15 15 Final Carried 15 | 2 13 15 12 Class Distribution -------------------- 88% | Mutant 11% | Scavenger-Mutant Dominant Class ---------------- Mutant | -10/Materials Mutant | -10/Mines Mutant | -10/Subcaves Resources | -11 -10 -10 -10 ----------- Run | Yrd Mat Min Sub Matter Collected 1474 | 270 466 452 286 Remotely . | . . . . Salvage Created 1076 | . 484 251 341 Parts 68 | . 31 14 23 Haulers Intercepted 2 | . 2 . . Recyclers Shooed 1 | . 1 . . Parts Field Recycled . | . . . . Retrieved Matter . | . . . . Parts Self-Destructed 7 | . . . 7 Prevented . | . . . . Parts Restored . | . . . . Kills | -11 -10 -10 -10 ------- Run | Yrd Mat Min Sub Combat Hostiles Destroyed 30 | . 11 6 13 Guns 12 | . 7 1 4 Cannons 8 | . 2 5 1 AOE 10 | . 2 . 8 Classes Destroyed 9 | . 7 1 1 Builder 1 | . 1 . . Hauler 2 | . 2 . . Recycler 1 | . 1 . . Operator 2 | . 2 . . Watcher 3 | . 3 . . Swarmer 6 | . 6 . . Grunt 9 | . 5 4 . Sentry 2 | . . 2 . Subdweller 13 | . . . 13 Best Kill Streak 4 | . 4 2 4 Combat Bots Only 4 | . 3 2 4 Max Kills in Single Turn 3 | . 2 1 3 Gunslinging . | . . . . Exploded 3 | . 2 . 3 Melee . | . . . . Uniques/NPCs Destroyed . | . . . . Combat | -11 -10 -10 -10 -------- Run | Yrd Mat Min Sub Hostile Shots Fired 141 | . 67 27 47 Missed 43 | . 19 8 16 Hits 98 | . 48 19 31 Projectile 98 | . 48 19 31 AOE 5 | . . . 5 Critical Strikes 3 | . . 2 1 Damage Taken 1596 | . 494 259 843 Core 256 | . 86 29 141 Absorbed by Shields . | . . . . Regen/Repaired (Parts) 228 | . 228 . . Core Remaining (%) 100 | 100 . . . Volleys Fired 116 | . 64 14 38 Largest 2 | . 2 2 2 Hottest 85 | . 50 85 83 Shots Fired 229 | . 128 28 73 Gun 157 | . 93 14 50 Cannon 55 | . 33 14 8 Launcher 17 | . 2 . 15 Special . | . . . . Kinetic 196 | . 126 15 55 Thermal 16 | . . 13 3 Explosive 17 | . 2 . 15 Electromagnetic . | . . . . Robot Hit Streak 14 | . 7 8 14 Robot Miss Streak 6 | . 6 2 2 Penetration Max . | . . . . Secondary Targets 2 | . 1 . 1 Max Gunslinging Chain 1 | . 1 . 1 Shots Hit Robots 115 | . 61 17 37 Core Hits 61 | . 30 9 22 Critical Kills . | . . . . Critical Parts Destroyed 1 | . 1 . . Critical Strikes 3 | . 2 . 1 Destroy 2 | . 1 . 1 Blast 1 | . 1 . . Melee Attacks . | . . . . Impact . | . . . . Slashing . | . . . . Piercing . | . . . . Sneak Attacks . | . . . . Combat Hostiles . | . . . . Follow-up Attacks . | . . . . Damage Inflicted 2621 | . 910 369 1342 Guns 1092 | . 486 167 439 Cannons 593 | . 286 202 105 Explosions 932 | . 134 . 798 Melee . | . . . . Ramming 4 | . 4 . . Kinetic 1456 | . 772 187 497 Thermal 229 | . . 182 47 Explosive 932 | . 134 . 798 Electromagnetic . | . . . . Impact . | . . . . Slashing . | . . . . Piercing . | . . . . Highest Corruption . | . . . . Average Corruption . | . . . . Corruption Purged . | . . . . Corruption Blocked . | . . . . Overload Shots . | . . . . Overflow Damage . | . . . . Projectiles . | . . . . Explosions . | . . . . Melee . | . . . . Knockbacks 6 | . 5 1 . Impact . | . . . . Kinetic 6 | . 5 1 . Secondary . | . . . . Self-Inflicted Damage . | . . . . Shots . | . . . . Rammed . | . . . . Targets Rammed 2 | . 2 . . Kicked 2 | . 2 . . Crushed . | . . . . Highest Temperature 168 | . 47 168 . Average Temperature 31 | . 10 66 . Received Heat Transfer 393 | . 153 144 96 Siege Activations . | . . . . Martial Activations . | . . . . Shielding Activations . | . . . . Robots Disrupted . | . . . . Combat Hostiles . | . . . . Robots Corrupted . | . . . . Combat Hostiles . | . . . . Parts Fried . | . . . . Impact Corruptions . | . . . . Robots Melted . | . . . . Combat Hostiles . | . . . . Parts Melted 1 | . . . 1 Heat Transferred 370 | . . 296 74 Parts Sabotaged . | . . . . Parts Stolen . | . . . . Parts Stripped . | . . . . Power Chain Reactions . | . . . . Alert | -11 -10 -10 -10 ------- Run | Yrd Mat Min Sub Maximum Alert Level . | . . . . Low Security (%) 100 | 100 100 100 . Level 1 . | . . . . Level 2 . | . . . . Level 3 . | . . . . Level 4 . | . . . . Level 5 . | . . . . High Security . | . . . . Max Security . | . . . . Peak Influence 104 | . 104 66 . Initial 25 | . . 25 . Average 26 | . 36 7 . Influence Increases 652 | . 494 158 . Destroy 0b10 Robot/C 340 | . 220 120 . Destroy 0b10 Robot/NC 45 | . 45 . . Destroy Leader 80 | . 60 20 . Successful Hack 39 | . 39 . . Disable Machine 75 | . 60 15 . Destroy Structure 13 | . 10 3 . Lose Combat Pursuer 60 | . 60 . . Influence Decreases 652 | . 428 224 . Entered New Map 41 | . . 41 . Time Decay 611 | . 428 183 . Squads Dispatched 3 | . 2 1 . Investigation 1 | . . 1 . Extermination . | . . . . Reinforcement 2 | . 2 . . Assault . | . . . . Garrison . | . . . . Intercept . | . . . . Searches Triggered . | . . . . Construction Impeded . | . . . . Haulers Reinforced . | . . . . Active Scanning Responses . | . . . . Cargo Convoy Interrupts . | . . . . Stealth | -11 -10 -10 -10 --------- Run | Yrd Mat Min Sub Distress Signals . | . . . . Communications Jammed . | . . . . Distress Signals . | . . . . Times Spotted 50 | . 29 6 15 Peak Tracking Total 6 | . 3 2 6 Tactical Retreats 4 | . 4 . . Traps | -11 -10 -10 -10 ------- Run | Yrd Mat Min Sub Traps Triggered 1 | . 1 . . Indirectly . | . . . . Trap Hack Attempts 34 | . 34 . . Triggered . | . . . . Disarmed . | . . . . Reprogrammed 3 | . 3 . . Reused . | . . . . Traps Extracted . | . . . . Installed . | . . . . Triggered . | . . . . Machines | -11 -10 -10 -10 ---------- Run | Yrd Mat Min Sub Machines Disabled 5 | . 4 1 . Max in Single Turn 1 | . 1 1 . Machines Repaired . | . . . . Machines Dismantled . | . . . . Machines Sabotaged . | . . . . Overloaded Fab Kills . | . . . . Hacking | -11 -10 -10 -10 --------- Run | Yrd Mat Min Sub Machines Accessed 10 | . 9 1 . Terminals 6 | . 6 . . Fabricators . | . . . . Repair Stations 1 | . 1 . . Recycling Units 2 | . 2 . . Scanalyzers . | . . . . Garrison Access . | . . . . Total Hacks 37 | . 36 1 . Successful 22 | . 21 1 . Failed 15 | . 15 . . Catastrophic . | . . . . Database Lockouts . | . . . . Manual . | . . . . Terminals 20 | . 20 . . Fabricators . | . . . . Repair Stations 10 | . 10 . . Recycling Units 6 | . 6 . . Scanalyzers . | . . . . Garrison Access . | . . . . Terminal Hacks 11 | . 10 1 . Prototype ID Bank 2 | . 2 . . Open Door 1 | . . 1 . Terminal Index 1 | . 1 . . Dispatch Records 1 | . 1 . . Investigation Status 1 | . 1 . . Recall Investigation 1 | . 1 . . Hauler Manifests 1 | . 1 . . Registered Components 1 | . 1 . . Zone Layout 2 | . 2 . . Fabricator Hacks . | . . . . Repair Station Hacks 9 | . 9 . . Scan Component 5 | . 5 . . Repair 4 | . 4 . . Recycling Unit Hacks 2 | . 2 . . Retrieve Components 2 | . 2 . . Scanalyzer . | . . . . Garrison Access Hacks . | . . . . Unauthorized Hacks . | . . . . Terminals . | . . . . Fabricators . | . . . . Repair Stations . | . . . . Recycling Units . | . . . . Scanalyzers . | . . . . Garrison Access . | . . . . Data Cores Recovered . | . . . . Used . | . . . . Hacking Detections 7 | . 7 . . Full Trace Events . | . . . . Feedback Events . | . . . . Feedback Blocked . | . . . . Robot Schematics Acquired . | . . . . Robots Built . | . . . . Authchips . | . . . . Time . | . . . . Total Robot Build Rating . | . . . . Part Schematics Acquired . | . . . . Parts Built . | . . . . Authchips . | . . . . Time . | . . . . Total Part Build Rating . | . . . . Part Studies Acquired . | . . . . Parts Repaired 4 | . 4 . . Time 104 | . 104 . . Parts Recycled . | . . . . Recycled Matter . | . . . . Retrieved Matter . | . . . . Retrieved Components 20 | . 20 . . Parts Scanalyzed . | . . . . Part Schematics Acquired . | . . . . Parts Damaged . | . . . . Bothacking | -11 -10 -10 -10 ------------ Run | Yrd Mat Min Sub Used RIF Installer . | . . . . Robots Hacked . | . . . . Non-combat . | . . . . Combat . | . . . . Robot Hacks Applied . | . . . . Relay Couplers Released . | . . . . Fabnet Peak Effective % . | . . . . Robots Rewired . | . . . . Allies Hacked . | . . . . Hacks Repelled . | . . . . Allies | -11 -10 -10 -10 -------- Run | Yrd Mat Min Sub Total Allies 3 | . . 3 . Largest Group 3 | . . 3 3 Highest-Rated Group 40 | . . 40 40 Highest-Rated Ally 16 | . . 16 16 Total Orders . | . . . . Ally Attacks 19 | . . . 19 Total Damage 270 | . . . 270 Kills 2 | . . . 2 Allies Corrupted . | . . . . Allies Melted . | . . . . Intel | -11 -10 -10 -10 ------- Run | Yrd Mat Min Sub Active Infowar (turns) . | . . . . Robot Analysis Total . | . . . . Derelict Logs Recovered 4 | . . 2 2 Drone Launches . | . . . . Drone Recoveries . | . . . . Exploration | -11 -10 -10 -10 ------------- Run | Yrd Mat Min Sub Turns Passed 6275 | 66 2770 1371 2068 Spaces Moved 2962 | 51 1228 679 1004 Core 13 | 13 . . . Treads . | . . . . Legs 2949 | 38 1228 679 1004 Wheels . | . . . . Hover . | . . . . Flight . | . . . . Fastest Speed 50 | 50 120 190 190 Average Speed 188 | 102 189 190 190 Slowest Speed 260 | 120 260 190 190 Overloaded Moves . | . . . . Propulsion Burnouts . | . . . . Robots Hopped . | . . . . Potential Cave-ins . | . . . . Cave-ins Triggered . | . . . . Exploration Rate (%) 57 | 3 88 89 49 Regions Visited 3 Branch Regions 2 Pre-discovered Areas 1 | . . . 1 Known Exits Taken 2 | . 1 1 . Unknown Exits Taken 1 | 1 . . . Scrap Searched 6 | . . 1 5 Spaces Dug . | . . . . Terrain Destroyed 73 | . 10 3 60 Melee . | . . . . Projectile 3 | . . 3 . AOE 70 | . 10 . 60 Terrain Rammed . | . . . . Walls Destroyed . | . . . . Machines Disabled . | . . . . Actions | -11 -10 -10 -10 --------- Run | Yrd Mat Min Sub Total 3439 | 63 1548 735 1093 Wait 208 | . 174 21 13 Move 2959 | 50 1227 678 1004 Hop . | . . . . Pick Up 48 | 6 24 9 9 Fast Attach 7 | 2 2 2 1 Attach 12 | 4 4 . 4 Detach . | . . . . Swap 23 | 1 8 2 12 Drop 29 | . 9 9 11 Fire 116 | . 64 14 38 Melee . | . . . . Ram . | . . . . Kick 2 | . 2 . . Crush . | . . . . Escape Stasis . | . . . . Rewire 1 | . . . 1 Trap 34 | . 34 . . Miscellaneous . | . . . . Route ------- -11/Scrapyard -10/Materials (discovered 5 exits: *Mat x2 / *Min x2 / *Sub) -10/Mines (discovered 3 exits: *Mat x2 / *Sub) -10/Subcaves (discovered 1 exit: *Mat) History --------- Turn | Location | Event 6 | -11/Scrapyard | Discovered new exit (range 15) 67 | -11/Scrapyard | Entered Materials 315 | -10/Materials | Build established: Mutant 439 | -10/Materials | Discovered new exit (range 14) 843 | -10/Materials | Discovered new exit (range 8) 893 | -10/Materials | Discovered new exit (range 9) 923 | -10/Materials | Identified exit to Materials 1668 | -10/Materials | Repaired Assault Rifle 1695 | -10/Materials | Repaired Lgt. Armor Plating 1723 | -10/Materials | Repaired Aluminum Leg 1751 | -10/Materials | Repaired Aluminum Leg 1792 | -10/Materials | Discovered new exit (range 16) 1870 | -10/Materials | Identified exit to Mines 2001 | -10/Materials | Discovered exit to Materials (range 15) 2837 | -10/Materials | Entered Mines 2905 | -10/Mines | Met a Derelict shopkeep closing up shop 3436 | -10/Mines | Found a hidden stash of uninstalled traps 3493 | -10/Mines | Discovered exit to Materials (range 13) 3578 | -10/Mines | Learned Materials emergency access door positions 3823 | -10/Mines | Discovered new exit (range 7) 3854 | -10/Mines | Identified exit to Subcaves 3930 | -10/Mines | Discovered exit to Materials (range 8) 3952 | -10/Mines | Assisted by bots powering up and referring to "LRC-V3" 4079 | -10/Mines | Received a Rocket Launcher from a helpful Derelict 4208 | -10/Mines | Entered Subcaves 4208 | -10/Subcaves | Accompanied by 3 allies 4414 | -10/Subcaves | A swath of the cavern ceiling suddenly collapsed 4535 | -10/Subcaves | Ambushed by swarm of Subdwellers 4600 | -10/Subcaves | Lost 7 allies 4618 | -10/Subcaves | Core integrity fell below 50% 4746 | -10/Subcaves | Learned Materials interactive machine intel 5024 | -10/Subcaves | Discovered new exit (range 10) 5039 | -10/Subcaves | Shifting Twisted Machinery released Sub. Beam Cannon 5046 | -10/Subcaves | Identified exit to Materials 5089 | -10/Subcaves | Shifting Twisted Machinery released Hvy. Riot Gun 5297 | -10/Subcaves | Shifting Twisted Machinery released Battle Rifle 5297 | -10/Subcaves | Shifting Twisted Machinery released Sub. Beam Cannon 5570 | -10/Subcaves | Build established: Scavenger-Mutant 5983 | -10/Subcaves | Core integrity fell below 20% 6046 | -10/Subcaves | Ambushed by Subdwellers from Twisted Machinery 6063 | -10/Subcaves | A swath of the cavern ceiling suddenly collapsed 6084 | -10/Subcaves | Lost 4 parts (1p1n1u1w) 6276 | -10/Subcaves | Destroyed by Y-45 Defender with Heavy Assault Rifle Last Messages --------------- 06033_ Acquired Barrage Gun. 06046_ The unstable cave ceiling collapses. 06046_ Acquired 34 matter. 06047_ Carbon-fiber Leg destroyed. 06051_ Battle Cannon destroyed. 06051_ Lgt. Deuterium Engine destroyed. 06052_ Sub. Power Source melted. 06052_ 7H-OP6(R) destroyed. 06053_ Signal Interpreter destroyed. 06056_ F5-CT1(R) destroyed. 06059_ The unstable cave ceiling collapses. 06063_ Disposable Heat Sink crushed. 06063_ Scrap Shield Fragment crushed. 06063_ 15 Matter crushed. 06063_ 1 Matter crushed. A swath of the cavern ceiling suddenly collapses. 06096_ Acquired Sub. Machine Gun. 06266_ OR-VZ7(u) deconstructs Twisted Machinery. Map ----- +----------------------------------------------------+ | ???????????????# #### " "#]#"#""#####" &# | | ????????????????# # ""#####""#""""""## # | | ???????????????## """ " """##"#""##"# ""& | | ???????????????# " "##"######"#"& | | ??????????????## ## ###" #""?????#### &# # | | ?????????????## ####?########???????# ## ## | | ?????????????# ##??????????????????##########? | | ?????????????# "##???????????????????????????? | | ????????????## ""#???????????????????????????? | | ????????????# ""#???????????????????????????? | | ????????????## ## ""#???????????????????????????? | | ?????????????# "### #???????????????????????????? | | ?????????????# ""#?# #???????????????????????????? | | ?????????????# ##??##???????????????????????????? | | ?????????????# ##???????????????????????????????? | | ?????????????# ##??????????????????????????????? | | ?????????????# #??????????????????????????????? | | ?????????????# #??????????????????????????????? | | ?????????????# #??????????????????????????????? | | ?????????????# ##?????????????????????????????? | | ?????????????# #?????????#####???????????????? | | ????????????## #?####??## ######"?????????? | | ????????????# ###### ##?# u ??????????? | | ????????????# ##### ### " "??????????? | | ????????????## #??????????????? | | ?????????????# @ ##??????????????? | | ?????????????### ## #???????????????? | | ???????????????###### ##??????????????? | | ????????????????????# #??????????????? | | ????????????????????# #??????????????? | | ????????????????????# ##Y #??????????????? | | ?????????????# #?# ### ##??????????????? | | ?????????????# ### # ?????? | | ?????????????# % ?????? | | ?????????????# #??????? | | ?????????????## ######### # ## ##??????? | | ??????????????# ?????????# #####??? #???????? | | ??????????????## ?????????? #????????????????? | | ???????????????## ?????????? ????????????????? | | ????????????????###? ?????????? #???????????????? | | ???????????????????????????????? #???????????????? | | ???????????????????????????????? ???????????????? | | ???????????????????????????????? ???????????????? | | ?????????????????????????????????? ??????????????? | | ?????????????????????????????????????????????????? | | ?????????????????????????????????????????????????? | | ?????????????????????????????????????????????????? | | ?????????????????????????????????????????????????? | | ?????????????????????????????????????????????????? | | ?????????????????????????????????????????????????? | +----------------------------------------------------+ Best States ------------- Heat Dissipation 25 Energy Generation 14 Energy Capacity 250 Matter Stores 300 Matter Capacity 300 Sight Range 16 Terrain Scan Density 10 Armor Coverage 150 Evasion (%) 55 Authchip Count 2 Item Schematics ----------------- None Robot Schematics ------------------ None Fabricated ------------ Nothing Repaired ---------- Assault Rifle | 26% | -10/Materials Lgt. Armor Plating | 42% | -10/Materials Aluminum Leg | 40% | -10/Materials Aluminum Leg | 46% | -10/Materials Studied --------- None Alien Tech Used ----------------- None Achievements -------------- Hehehe Challenges ------------ None Game ------ Seed LauncherEtherialDoublenader Manual? 0 Play Time 00:46:26 Cumulative 8.6 hours Start 2026.07.20 @ 20:05:02 End 2026.07.20 @ 20:48:57 Sessions 1 Manual Loads 0 Difficulty Rogue Special Mode None Game No. 8 Rogue 8 Adventurer 0 Explorer 0 Win Type - Total 0 Types 0/0/0/0/0/0/0/0/0/0 Lore% 4 Gallery% 7 Achievement% 10 Wizard Run 0 Options --------- Layout 2 ASCII 0 Keyboard 0 Movement Mouse Keybinds 1 Fullscreen 1 Font 24/Terminus Map View 50x44 Zoom Use 0% Tactical HUD 1 Map Filters NONE Filters NONE Steam 1 RUN: 5739f2e8-a3fd-4633-9a40-c14454f1e574